[Event "Titled Tuesday Blitz December 20 Early 2022"]
[White "Gnechko_Ruslan"]
[Black "Jenkins, Drake"]
[BlackFideId "2022397"]
[WhiteElo "2448"]
[BlackElo "2130"]
[Result "0-1"]
[Round "02"]
[TimeControl "180+2"]
[Date "2022.12.20"]
[WhiteClock "0:00:03"]
[BlackClock "0:00:03"]

1. e4 {[%clk 0:02:55]}  c5 {[%clk 0:02:59]} 2. Nf3 {[%clk 0:02:55]}  g6 {[%clk 0:02:59]} 3. d4 {[%clk 0:02:53]}  cxd4 {[%clk 0:03:00]} 4. Nxd4 {[%clk 0:02:53]}  Nf6 {[%clk 0:03:00]} 5. Nc3 {[%clk 0:02:49]}  Nc6 {[%clk 0:03:01]} 6. Nxc6 {[%clk 0:02:41]}  bxc6 {[%clk 0:02:59]} 7. e5 {[%clk 0:02:40]}  Ng8 {[%clk 0:02:57]} 8. Bc4 {[%clk 0:02:36]}  Qa5 {[%clk 0:02:46]} 9. O-O {[%clk 0:02:34]}  Ba6 {[%clk 0:02:35]} 10. Bxa6 {[%clk 0:02:26]}  Qxa6 {[%clk 0:02:35]} 11. f4 {[%clk 0:02:25]}  Nh6 {[%clk 0:02:29]} 12. Be3 {[%clk 0:02:21]}  Nf5 {[%clk 0:02:19]} 13. Bf2 {[%clk 0:02:21]}  h5 {[%clk 0:02:20]} 14. Qd2 {[%clk 0:02:18]}  Bh6 {[%clk 0:02:12]} 15. Rad1 {[%clk 0:02:18]}  Rd8 {[%clk 0:02:08]} 16. Ne4 {[%clk 0:02:11]}  Qxa2 {[%clk 0:01:44]} 17. Ra1 {[%clk 0:02:00]}  Qd5 {[%clk 0:01:43]} 18. Qxd5 {[%clk 0:01:56]}  cxd5 {[%clk 0:01:44]} 19. Nc3 {[%clk 0:01:55]}  Bxf4 {[%clk 0:01:34]} 20. Nxd5 {[%clk 0:01:55]}  Bxe5 {[%clk 0:01:32]} 21. c3 {[%clk 0:01:47]}  O-O {[%clk 0:01:01]} 22. Rfe1 {[%clk 0:01:47]}  f6 {[%clk 0:00:32]} 23. Rxa7 {[%clk 0:01:43]}  Kf7 {[%clk 0:00:30]} 24. Rd1 {[%clk 0:01:37]}  d6 {[%clk 0:00:24]} 25. b4 {[%clk 0:01:20]}  Ra8 {[%clk 0:00:22]} 26. Rda1 {[%clk 0:01:18]}  Rxa7 {[%clk 0:00:20]} 27. Rxa7 {[%clk 0:01:19]}  Rc8 {[%clk 0:00:13]} 28. Be1 {[%clk 0:01:11]}  Ke6 {[%clk 0:00:12]} 29. Nc7+ {[%clk 0:01:01]}  Kd7 {[%clk 0:00:11]} 30. Nd5+ {[%clk 0:00:53]}  Ke6 {[%clk 0:00:11]} 31. Nb6 {[%clk 0:00:52]}  Rc6 {[%clk 0:00:10]} 32. Na4 {[%clk 0:00:48]}  Ne3 {[%clk 0:00:09]} 33. b5 {[%clk 0:00:48]}  Rc4 {[%clk 0:00:09]} 34. b6 {[%clk 0:00:45]}  Rc8 {[%clk 0:00:04]} 35. b7 {[%clk 0:00:25]}  Rb8 {[%clk 0:00:03]} 36. Nb6 {[%clk 0:00:26]}  Nd5 {[%clk 0:00:03]} 37. Nc4 {[%clk 0:00:20]}  Bxc3 {[%clk 0:00:02]} 38. Bf2 {[%clk 0:00:18]}  Bb4 {[%clk 0:00:02]} 39. h3 {[%clk 0:00:14]}  Kd7 {[%clk 0:00:01]} 40. g4 {[%clk 0:00:04]}  Bc5 {[%clk 0:00:01]} 41. Bxc5 {[%clk 0:00:04]}  dxc5 {[%clk 0:00:02]} 42. Ra5 {[%clk 0:00:04]}  hxg4 {[%clk 0:00:02]} 43. Rxc5 {[%clk 0:00:04]}  Nc7 {[%clk 0:00:01]} 44. Nb6+ {[%clk 0:00:04]}  Kd6 {[%clk 0:00:02]} 45. Rc3 {[%clk 0:00:02]}  Rxb7 {[%clk 0:00:02]} 46. Nc8+ {[%clk 0:00:03]}  Kd7 {[%clk 0:00:02]} 47. hxg4 {[%clk 0:00:04]}  Kxc8 {[%clk 0:00:02]} 48. g5 {[%clk 0:00:04]}  fxg5 {[%clk 0:00:02]} 49. Rc6 {[%clk 0:00:05]}  Kd7 {[%clk 0:00:01]} 50. Rxg6 {[%clk 0:00:05]}  Rb5 {[%clk 0:00:02]} 51. Kf2 {[%clk 0:00:04]}  Rf5+ {[%clk 0:00:02]} 52. Ke3 {[%clk 0:00:04]}  e6 {[%clk 0:00:02]} 53. Rg7+ {[%clk 0:00:04]}  Kd6 {[%clk 0:00:02]} 54. Ke4 {[%clk 0:00:04]}  Nd5 {[%clk 0:00:03]} 55. Rg8 {[%clk 0:00:04]}  Rf4+ {[%clk 0:00:03]} 56. Kd3 {[%clk 0:00:03]}  g4 {[%clk 0:00:03]} 57. Rg5 {[%clk 0:00:02]}  Rf3+ {[%clk 0:00:03]} 58. Ke2 {[%clk 0:00:03]}  Rf4 {[%clk 0:00:02]} 59. Kd3 {[%clk 0:00:03]}  Rb4 {[%clk 0:00:03]} 0-1


[Site "https://www.chess.com"]

[Event "Titled Tuesday Blitz December 20 Early 2022"]
[White "GregLeBarbare"]
[Black "Zozik, S. Mohammed"]
[BlackFideId "4803280"]
[WhiteElo "2242"]
[BlackElo "2116"]
[Result "1-0"]
[Round "02"]
[TimeControl "180+2"]
[Date "2022.12.20"]
[WhiteClock "0:00:18"]
[BlackClock "0:00:05"]

1. d4 {[%clk 0:03:00]}  Nf6 {[%clk 0:02:58]} 2. Bf4 {[%clk 0:02:59]}  c5 {[%clk 0:02:56]} 3. e3 {[%clk 0:02:58]}  Qb6 {[%clk 0:02:56]} 4. Nc3 {[%clk 0:02:57]}  d5 {[%clk 0:02:50]} 5. a3 {[%clk 0:02:27]}  e6 {[%clk 0:02:45]} 6. Nf3 {[%clk 0:02:26]}  a6 {[%clk 0:02:39]} 7. Bd3 {[%clk 0:02:17]}  Bd6 {[%clk 0:02:30]} 8. Na4 {[%clk 0:01:50]}  Qa5+ {[%clk 0:02:07]} 9. b4 {[%clk 0:01:49]}  Qxa4 {[%clk 0:02:02]} 10. Bxd6 {[%clk 0:01:49]}  c4 {[%clk 0:02:02]} 11. Be2 {[%clk 0:01:47]}  Qc6 {[%clk 0:02:02]} 12. Bg3 {[%clk 0:01:42]}  O-O {[%clk 0:02:00]} 13. c3 {[%clk 0:01:42]}  Ne4 {[%clk 0:02:00]} 14. Qc2 {[%clk 0:01:41]}  b5 {[%clk 0:01:57]} 15. Ne5 {[%clk 0:01:36]}  Qb6 {[%clk 0:01:54]} 16. Bf4 {[%clk 0:01:31]}  Nc6 {[%clk 0:01:51]} 17. f3 {[%clk 0:01:27]}  Nf6 {[%clk 0:01:50]} 18. O-O {[%clk 0:01:11]}  Nxe5 {[%clk 0:01:47]} 19. Bxe5 {[%clk 0:01:10]}  Nd7 {[%clk 0:01:48]} 20. Bg3 {[%clk 0:01:09]}  Bb7 {[%clk 0:01:39]} 21. e4 {[%clk 0:01:09]}  e5 {[%clk 0:01:29]} 22. Rad1 {[%clk 0:01:04]}  a5 {[%clk 0:01:19]} 23. Kh1 {[%clk 0:01:03]}  axb4 {[%clk 0:01:18]} 24. axb4 {[%clk 0:01:03]}  dxe4 {[%clk 0:01:13]} 25. dxe5 {[%clk 0:01:00]}  exf3 {[%clk 0:01:09]} 26. Bxf3 {[%clk 0:00:58]}  Bxf3 {[%clk 0:01:09]} 27. Rxf3 {[%clk 0:00:59]}  Rad8 {[%clk 0:01:02]} 28. Bh4 {[%clk 0:00:51]}  f6 {[%clk 0:00:56]} 29. exf6 {[%clk 0:00:46]}  Nxf6 {[%clk 0:00:53]} 30. Rdf1 {[%clk 0:00:30]}  Qd6 {[%clk 0:00:43]} 31. Qf5 {[%clk 0:00:23]}  Rd7 {[%clk 0:00:33]} 32. Qxb5 {[%clk 0:00:22]}  Qd5 {[%clk 0:00:20]} 33. Qxd5+ {[%clk 0:00:21]}  Rxd5 {[%clk 0:00:21]} 34. Bxf6 {[%clk 0:00:22]}  gxf6 {[%clk 0:00:20]} 35. h3 {[%clk 0:00:23]}  Rfd8 {[%clk 0:00:17]} 36. Rg3+ {[%clk 0:00:23]}  Kf7 {[%clk 0:00:16]} 37. Rf4 {[%clk 0:00:24]}  Rd3 {[%clk 0:00:14]} 38. Rff3 {[%clk 0:00:22]}  Ke6 {[%clk 0:00:09]} 39. Kh2 {[%clk 0:00:21]}  f5 {[%clk 0:00:09]} 40. b5 {[%clk 0:00:19]}  Ke5 {[%clk 0:00:08]} 41. b6 {[%clk 0:00:20]}  f4 {[%clk 0:00:09]} 42. Rg5+ {[%clk 0:00:18]}  Kf6 {[%clk 0:00:08]} 43. Rb5 {[%clk 0:00:16]}  Rxf3 {[%clk 0:00:08]} 44. gxf3 {[%clk 0:00:16]}  Ke6 {[%clk 0:00:08]} 45. b7 {[%clk 0:00:16]}  Rb8 {[%clk 0:00:08]} 46. Rb4 {[%clk 0:00:16]}  Kd5 {[%clk 0:00:08]} 47. h4 {[%clk 0:00:17]}  Kc5 {[%clk 0:00:08]} 48. Kh3 {[%clk 0:00:17]}  Kd5 {[%clk 0:00:06]} 49. Kg4 {[%clk 0:00:18]}  Ke5 {[%clk 0:00:07]} 50. Rb5+ {[%clk 0:00:18]}  Ke6 {[%clk 0:00:06]} 51. Kxf4 {[%clk 0:00:18]}  Kd6 {[%clk 0:00:06]} 52. Ke4 {[%clk 0:00:18]}  Kc6 {[%clk 0:00:06]} 53. Rb4 {[%clk 0:00:18]}  Kc7 {[%clk 0:00:06]} 54. Kd4 {[%clk 0:00:18]}  Rd8+ {[%clk 0:00:05]} 55. Kxc4 {[%clk 0:00:19]}  Kb8 {[%clk 0:00:06]} 56. Rb5 {[%clk 0:00:17]}  Rf8 {[%clk 0:00:07]} 57. Rh5 {[%clk 0:00:15]}  Rxf3 {[%clk 0:00:06]} 58. Rxh7 {[%clk 0:00:16]}  Rf4+ {[%clk 0:00:06]} 59. Kb3 {[%clk 0:00:15]}  Rg4 {[%clk 0:00:06]} 60. h5 {[%clk 0:00:16]}  Rh4 {[%clk 0:00:06]} 61. h6 {[%clk 0:00:16]}  Rh3 {[%clk 0:00:06]} 62. Kb4 {[%clk 0:00:16]}  Rh5 {[%clk 0:00:06]} 63. c4 {[%clk 0:00:17]}  Rh2 {[%clk 0:00:05]} 64. Kb5 {[%clk 0:00:16]}  Rh1 {[%clk 0:00:05]} 65. c5 {[%clk 0:00:16]}  Rb1+ {[%clk 0:00:05]} 66. Kc6 {[%clk 0:00:16]}  Rd1 {[%clk 0:00:05]} 67. Rh8+ {[%clk 0:00:17]}  Ka7 {[%clk 0:00:05]} 68. b8=Q+ {[%clk 0:00:18]}  Ka6 {[%clk 0:00:05]} 69. Qb6# {[%clk 0:00:18]} 1-0


[Site "https://www.chess.com"]

[Event "Titled Tuesday Blitz December 20 Early 2022"]
[White "GuessChess_game"]
[Black "nikitakhoroshev"]
[WhiteElo "2424"]
[BlackElo "2709"]
[Result "0-1"]
[Round "02"]
[TimeControl "180+2"]
[Date "2022.12.20"]
[WhiteClock "0:00:06"]
[BlackClock "0:00:33"]

1. d4 {[%clk 0:03:00]}  Nf6 {[%clk 0:02:59]} 2. Nf3 {[%clk 0:03:00]}  g6 {[%clk 0:02:58]} 3. Nc3 {[%clk 0:02:59]}  Bg7 {[%clk 0:02:53]} 4. e4 {[%clk 0:02:58]}  d6 {[%clk 0:02:53]} 5. h3 {[%clk 0:02:58]}  O-O {[%clk 0:02:52]} 6. Bc4 {[%clk 0:02:58]}  Nxe4 {[%clk 0:02:48]} 7. Bxf7+ {[%clk 0:02:58]}  Rxf7 {[%clk 0:02:49]} 8. Nxe4 {[%clk 0:02:58]}  Nc6 {[%clk 0:02:40]} 9. O-O {[%clk 0:02:53]}  Rxf3 {[%clk 0:02:14]} 10. Qxf3 {[%clk 0:02:49]}  Nxd4 {[%clk 0:02:14]} 11. Qd1 {[%clk 0:02:39]}  Bf5 {[%clk 0:02:13]} 12. Re1 {[%clk 0:02:38]}  d5 {[%clk 0:02:10]} 13. Ng3 {[%clk 0:02:29]}  Bxc2 {[%clk 0:02:03]} 14. Qg4 {[%clk 0:02:21]}  e5 {[%clk 0:01:56]} 15. Be3 {[%clk 0:02:15]}  Bf5 {[%clk 0:01:46]} 16. Nxf5 {[%clk 0:02:15]}  Nxf5 {[%clk 0:01:47]} 17. Qb4 {[%clk 0:01:59]}  b6 {[%clk 0:01:47]} 18. Rad1 {[%clk 0:01:57]}  Qd7 {[%clk 0:01:45]} 19. Rd2 {[%clk 0:01:34]}  d4 {[%clk 0:01:31]} 20. f3 {[%clk 0:01:28]}  c5 {[%clk 0:01:26]} 21. Qc4+ {[%clk 0:01:24]}  Qf7 {[%clk 0:01:26]} 22. Qxf7+ {[%clk 0:01:22]}  Kxf7 {[%clk 0:01:26]} 23. Bf2 {[%clk 0:01:22]}  Ke6 {[%clk 0:01:25]} 24. f4 {[%clk 0:01:14]}  Kd5 {[%clk 0:01:24]} 25. fxe5 {[%clk 0:01:07]}  Bxe5 {[%clk 0:01:25]} 26. Rde2 {[%clk 0:00:55]}  Bd6 {[%clk 0:01:18]} 27. g4 {[%clk 0:00:53]}  Nh6 {[%clk 0:01:08]} 28. Kg2 {[%clk 0:00:49]}  Nf7 {[%clk 0:01:07]} 29. Bg3 {[%clk 0:00:48]}  Rd8 {[%clk 0:00:53]} 30. Bxd6 {[%clk 0:00:41]}  Nxd6 {[%clk 0:00:52]} 31. Re7 {[%clk 0:00:35]}  d3 {[%clk 0:00:51]} 32. Rxh7 {[%clk 0:00:29]}  Nc4 {[%clk 0:00:43]} 33. b3 {[%clk 0:00:26]}  Nb2 {[%clk 0:00:43]} 34. Ree7 {[%clk 0:00:06]}  Kd6 {[%clk 0:00:33]} 0-1


[Site "https://www.chess.com"]

[Event "Titled Tuesday Blitz December 20 Early 2022"]
[White "Hasangatin_Ramil"]
[Black "LileKoridze"]
[WhiteElo "2705"]
[BlackElo "2345"]
[Result "1-0"]
[Round "02"]
[TimeControl "180+2"]
[Date "2022.12.20"]
[WhiteClock "0:02:12"]
[BlackClock "0:01:29"]

1. e4 {[%clk 0:03:00]}  c5 {[%clk 0:03:00]} 2. Nf3 {[%clk 0:03:00]}  d6 {[%clk 0:02:59]} 3. d4 {[%clk 0:02:59]}  cxd4 {[%clk 0:02:59]} 4. Qxd4 {[%clk 0:03:00]}  a6 {[%clk 0:02:59]} 5. Be3 {[%clk 0:02:59]}  Nc6 {[%clk 0:02:57]} 6. Qb6 {[%clk 0:02:59]}  Qxb6 {[%clk 0:02:54]} 7. Bxb6 {[%clk 0:03:00]}  g6 {[%clk 0:02:54]} 8. Nc3 {[%clk 0:03:00]}  e6 {[%clk 0:02:53]} 9. O-O-O {[%clk 0:02:58]}  Nf6 {[%clk 0:02:49]} 10. Be2 {[%clk 0:02:58]}  Bd7 {[%clk 0:02:47]} 11. Bc7 {[%clk 0:02:49]}  Rc8 {[%clk 0:02:31]} 12. Bxd6 {[%clk 0:02:49]}  Bxd6 {[%clk 0:02:30]} 13. Rxd6 {[%clk 0:02:50]}  Ke7 {[%clk 0:02:31]} 14. Rhd1 {[%clk 0:02:47]}  Rhd8 {[%clk 0:02:28]} 15. h3 {[%clk 0:02:35]}  b5 {[%clk 0:02:27]} 16. a3 {[%clk 0:02:26]}  Ne8 {[%clk 0:02:06]} 17. R6d2 {[%clk 0:02:24]}  Na5 {[%clk 0:01:58]} 18. Ne5 {[%clk 0:02:19]}  Nf6 {[%clk 0:01:51]} 19. g4 {[%clk 0:02:19]}  h6 {[%clk 0:01:50]} 20. f4 {[%clk 0:02:18]}  g5 {[%clk 0:01:38]} 21. h4 {[%clk 0:02:18]}  Nh7 {[%clk 0:01:29]} 22. Rxd7+ {[%clk 0:02:12]} 1-0


[Site "https://www.chess.com"]

[Event "Titled Tuesday Blitz December 20 Early 2022"]
[White "Herrera Figueroa, Amado Ama"]
[Black "Shankland, Sam"]
[WhiteFideId "5137470"]
[BlackFideId "2004887"]
[WhiteElo "1496"]
[BlackElo "2711"]
[Result "0-1"]
[Round "02"]
[TimeControl "180+2"]
[Date "2022.12.20"]
[WhiteClock "0:00:01"]
[BlackClock "0:00:40"]

1. Nf3 {[%clk 0:03:00]}  d5 {[%clk 0:02:58]} 2. g3 {[%clk 0:03:01]}  g6 {[%clk 0:02:57]} 3. d4 {[%clk 0:02:59]}  Bg7 {[%clk 0:02:57]} 4. b3 {[%clk 0:02:59]}  Nf6 {[%clk 0:02:53]} 5. Bb2 {[%clk 0:03:00]}  O-O {[%clk 0:02:53]} 6. Bg2 {[%clk 0:02:55]}  c6 {[%clk 0:02:48]} 7. O-O {[%clk 0:02:55]}  Bf5 {[%clk 0:02:48]} 8. Ne5 {[%clk 0:02:54]}  Nbd7 {[%clk 0:02:48]} 9. c4 {[%clk 0:02:54]}  Nxe5 {[%clk 0:02:34]} 10. dxe5 {[%clk 0:02:55]}  Ng4 {[%clk 0:02:34]} 11. cxd5 {[%clk 0:02:52]}  Nxe5 {[%clk 0:02:31]} 12. Nc3 {[%clk 0:02:51]}  cxd5 {[%clk 0:02:27]} 13. Qxd5 {[%clk 0:02:50]}  Nc6 {[%clk 0:02:12]} 14. Qxd8 {[%clk 0:02:32]}  Rfxd8 {[%clk 0:02:09]} 15. Rfd1 {[%clk 0:02:33]}  Rac8 {[%clk 0:01:29]} 16. Rxd8+ {[%clk 0:02:09]}  Rxd8 {[%clk 0:01:28]} 17. Rd1 {[%clk 0:02:04]}  Rc8 {[%clk 0:01:27]} 18. Na4 {[%clk 0:01:35]}  b5 {[%clk 0:01:19]} 19. Bxg7 {[%clk 0:01:31]}  Kxg7 {[%clk 0:01:19]} 20. Nc3 {[%clk 0:01:14]}  Nd4 {[%clk 0:01:17]} 21. Rxd4 {[%clk 0:00:54]}  Rxc3 {[%clk 0:01:17]} 22. Bf1 {[%clk 0:00:51]}  Rc1 {[%clk 0:00:54]} 23. Kg2 {[%clk 0:00:51]}  a5 {[%clk 0:00:54]} 24. e4 {[%clk 0:00:35]}  e5 {[%clk 0:00:53]} 25. Rd2 {[%clk 0:00:13]}  Bxe4+ {[%clk 0:00:53]} 26. f3 {[%clk 0:00:08]}  Bxf3+ {[%clk 0:00:53]} 27. Kxf3 {[%clk 0:00:09]}  Rxf1+ {[%clk 0:00:52]} 28. Kg2 {[%clk 0:00:09]}  Rc1 {[%clk 0:00:51]} 29. Rd5 {[%clk 0:00:09]}  e4 {[%clk 0:00:45]} 30. Rxb5 {[%clk 0:00:06]}  Rc2+ {[%clk 0:00:45]} 31. Kf1 {[%clk 0:00:06]}  Rxa2 {[%clk 0:00:45]} 32. Re5 {[%clk 0:00:02]}  Rxh2 {[%clk 0:00:40]} 33. Rxe4 {[%clk 0:00:02]}  Rb2 {[%clk 0:00:40]} 34. Re5 {[%clk 0:00:01]}  Rxb3 {[%clk 0:00:40]} 0-1


[Site "https://www.chess.com"]

[Event "Titled Tuesday Blitz December 20 Early 2022"]
[White "Huda, Maryana"]
[Black "Artels, Lieven"]
[WhiteFideId "14116553"]
[BlackFideId "205834"]
[WhiteElo "2160"]
[BlackElo "1984"]
[Result "1-0"]
[Round "02"]
[TimeControl "180+2"]
[Date "2022.12.20"]
[WhiteClock "0:01:32"]
[BlackClock "0:01:39"]

1. d4 {[%clk 0:03:00]}  Nf6 {[%clk 0:02:58]} 2. c4 {[%clk 0:03:00]}  g6 {[%clk 0:02:58]} 3. Nc3 {[%clk 0:02:59]}  Bg7 {[%clk 0:02:59]} 4. e4 {[%clk 0:03:00]}  d6 {[%clk 0:03:00]} 5. Be2 {[%clk 0:02:54]}  O-O {[%clk 0:02:59]} 6. Bg5 {[%clk 0:02:54]}  Nbd7 {[%clk 0:02:58]} 7. Qd2 {[%clk 0:02:54]}  c5 {[%clk 0:02:52]} 8. d5 {[%clk 0:02:52]}  Nb6 {[%clk 0:02:51]} 9. Nf3 {[%clk 0:02:45]}  a6 {[%clk 0:02:50]} 10. h3 {[%clk 0:02:42]}  Bd7 {[%clk 0:02:49]} 11. O-O {[%clk 0:02:41]}  Nc8 {[%clk 0:02:47]} 12. a4 {[%clk 0:02:40]}  Na7 {[%clk 0:02:47]} 13. e5 {[%clk 0:02:35]}  dxe5 {[%clk 0:02:43]} 14. Nxe5 {[%clk 0:02:34]}  Rb8 {[%clk 0:02:39]} 15. Bf4 {[%clk 0:02:29]}  Ra8 {[%clk 0:02:24]} 16. a5 {[%clk 0:02:21]}  b6 {[%clk 0:02:19]} 17. axb6 {[%clk 0:02:19]}  Qxb6 {[%clk 0:02:18]} 18. Na4 {[%clk 0:02:17]}  Qb7 {[%clk 0:02:14]} 19. Qa5 {[%clk 0:02:15]}  Qb4 {[%clk 0:02:02]} 20. Qxc5 {[%clk 0:02:05]}  Qxc5 {[%clk 0:02:00]} 21. Nxc5 {[%clk 0:02:06]}  Rfd8 {[%clk 0:01:54]} 22. Rxa6 {[%clk 0:01:58]}  Nh5 {[%clk 0:01:47]} 23. Bxh5 {[%clk 0:01:48]}  Bxe5 {[%clk 0:01:43]} 24. Bxe5 {[%clk 0:01:45]}  gxh5 {[%clk 0:01:42]} 25. b4 {[%clk 0:01:35]}  f6 {[%clk 0:01:42]} 26. Bf4 {[%clk 0:01:34]}  Bf5 {[%clk 0:01:39]} 27. Rfa1 {[%clk 0:01:32]} 1-0


[Site "https://www.chess.com"]

[Event "Titled Tuesday Blitz December 20 Early 2022"]
[White "Husnutdinov, Damir"]
[Black "SHIVACalypso"]
[WhiteFideId "14200910"]
[WhiteElo "2415"]
[BlackElo "2418"]
[Result "0-1"]
[Round "02"]
[TimeControl "180+2"]
[Date "2022.12.20"]
[WhiteClock "0:00:54"]
[BlackClock "0:01:04"]

1. d4 {[%clk 0:03:00]}  d5 {[%clk 0:02:59]} 2. Nf3 {[%clk 0:03:01]}  Bg4 {[%clk 0:02:53]} 3. g3 {[%clk 0:02:59]}  Bxf3 {[%clk 0:02:52]} 4. exf3 {[%clk 0:03:00]}  Qd6 {[%clk 0:02:43]} 5. Bg2 {[%clk 0:02:54]}  g6 {[%clk 0:02:39]} 6. O-O {[%clk 0:02:51]}  Bg7 {[%clk 0:02:39]} 7. Bf4 {[%clk 0:02:43]}  Qb6 {[%clk 0:02:37]} 8. c3 {[%clk 0:02:37]}  Qxb2 {[%clk 0:02:11]} 9. Nd2 {[%clk 0:02:28]}  Qxc3 {[%clk 0:02:08]} 10. Rc1 {[%clk 0:02:26]}  Qxd4 {[%clk 0:02:03]} 11. Rxc7 {[%clk 0:02:23]}  Nd7 {[%clk 0:01:50]} 12. Qa4 {[%clk 0:01:58]}  Qxa4 {[%clk 0:01:49]} 13. Rxb7 {[%clk 0:01:46]}  Ngf6 {[%clk 0:01:43]} 14. Rc1 {[%clk 0:01:36]}  O-O {[%clk 0:01:41]} 15. Rcc7 {[%clk 0:01:34]}  Qd1+ {[%clk 0:01:30]} 16. Bf1 {[%clk 0:01:29]}  e5 {[%clk 0:01:30]} 17. Be3 {[%clk 0:01:24]}  d4 {[%clk 0:01:28]} 18. Bg5 {[%clk 0:01:20]}  h6 {[%clk 0:01:27]} 19. Bxf6 {[%clk 0:01:18]}  Nxf6 {[%clk 0:01:28]} 20. Nc4 {[%clk 0:01:15]}  e4 {[%clk 0:01:21]} 21. Nd6 {[%clk 0:01:04]}  e3 {[%clk 0:01:06]} 22. fxe3 {[%clk 0:00:55]}  dxe3 {[%clk 0:01:06]} 23. Nxf7 {[%clk 0:00:54]}  e2 {[%clk 0:01:04]} 0-1


[Site "https://www.chess.com"]

[Event "Titled Tuesday Blitz December 20 Early 2022"]
[White "Ibarra Jerez, Jose Carlos"]
[Black "Gennady_Kozlov"]
[WhiteFideId "2226332"]
[WhiteElo "2563"]
[BlackElo "2574"]
[Result "1-0"]
[Round "02"]
[TimeControl "180+2"]
[Date "2022.12.20"]
[WhiteClock "0:00:17"]
[BlackClock "0:00:13"]

1. e4 {[%clk 0:03:00]}  e6 {[%clk 0:02:54]} 2. d4 {[%clk 0:03:00]}  d5 {[%clk 0:02:54]} 3. Nc3 {[%clk 0:02:59]}  Nf6 {[%clk 0:02:53]} 4. Bg5 {[%clk 0:02:59]}  Be7 {[%clk 0:02:51]} 5. e5 {[%clk 0:02:59]}  Nfd7 {[%clk 0:02:49]} 6. Bxe7 {[%clk 0:02:59]}  Qxe7 {[%clk 0:02:49]} 7. Qg4 {[%clk 0:03:00]}  g6 {[%clk 0:02:48]} 8. Nf3 {[%clk 0:02:56]}  a6 {[%clk 0:02:47]} 9. O-O-O {[%clk 0:02:56]}  c5 {[%clk 0:02:47]} 10. dxc5 {[%clk 0:02:56]}  Nc6 {[%clk 0:02:46]} 11. Qf4 {[%clk 0:02:53]}  Nxc5 {[%clk 0:02:45]} 12. h4 {[%clk 0:02:53]}  h5 {[%clk 0:02:44]} 13. Kb1 {[%clk 0:02:44]}  Bd7 {[%clk 0:02:43]} 14. Bd3 {[%clk 0:02:36]}  O-O-O {[%clk 0:02:42]} 15. Rhe1 {[%clk 0:02:33]}  Nxd3 {[%clk 0:02:33]} 16. Rxd3 {[%clk 0:02:28]}  Be8 {[%clk 0:02:21]} 17. Ne2 {[%clk 0:02:24]}  Qc7 {[%clk 0:02:20]} 18. Ned4 {[%clk 0:02:22]}  Kb8 {[%clk 0:02:19]} 19. Qf6 {[%clk 0:02:16]}  Rg8 {[%clk 0:02:17]} 20. Rc3 {[%clk 0:02:15]}  Rc8 {[%clk 0:02:10]} 21. Nxc6+ {[%clk 0:02:10]}  bxc6 {[%clk 0:02:09]} 22. Rc5 {[%clk 0:02:04]}  Ka8 {[%clk 0:02:01]} 23. Re3 {[%clk 0:01:59]}  Rb8 {[%clk 0:01:59]} 24. Rec3 {[%clk 0:01:57]}  Qb6 {[%clk 0:01:56]} 25. b3 {[%clk 0:01:54]}  Qb4 {[%clk 0:01:54]} 26. Kb2 {[%clk 0:01:49]}  Rc8 {[%clk 0:01:23]} 27. a3 {[%clk 0:01:47]}  Qe4 {[%clk 0:01:22]} 28. Qe7 {[%clk 0:01:39]}  Qe2 {[%clk 0:01:17]} 29. Nd4 {[%clk 0:01:34]}  Qxf2 {[%clk 0:01:17]} 30. Ra5 {[%clk 0:01:30]}  Qxd4 {[%clk 0:01:15]} 31. Rxa6+ {[%clk 0:01:23]}  Kb8 {[%clk 0:01:15]} 32. Ka2 {[%clk 0:01:16]}  Bd7 {[%clk 0:00:57]} 33. Rc5 {[%clk 0:01:11]}  Qf2 {[%clk 0:00:48]} 34. b4 {[%clk 0:00:37]}  Rc7 {[%clk 0:00:45]} 35. Qd6 {[%clk 0:00:36]}  Rc8 {[%clk 0:00:35]} 36. b5 {[%clk 0:00:36]}  Kb7 {[%clk 0:00:28]} 37. a4 {[%clk 0:00:22]}  Qd4 {[%clk 0:00:22]} 38. c3 {[%clk 0:00:20]}  Qd2+ {[%clk 0:00:21]} 39. Ka3 {[%clk 0:00:20]}  Qc1+ {[%clk 0:00:21]} 40. Kb4 {[%clk 0:00:20]}  Qb2+ {[%clk 0:00:21]} 41. Ka5 {[%clk 0:00:20]}  Qa3 {[%clk 0:00:16]} 42. b6 {[%clk 0:00:19]}  Qb3 {[%clk 0:00:13]} 43. Ra7+ {[%clk 0:00:16]}  Kb8 {[%clk 0:00:13]} 44. Rxc7 {[%clk 0:00:17]} 1-0


[Site "https://www.chess.com"]

[Event "Titled Tuesday Blitz December 20 Early 2022"]
[White "IngOscarArdila"]
[Black "De Firmian, Nick"]
[BlackFideId "2000105"]
[WhiteElo "2196"]
[BlackElo "2460"]
[Result "0-1"]
[Round "02"]
[TimeControl "180+2"]
[Date "2022.12.20"]
[WhiteClock "0:00:26"]
[BlackClock "0:00:19"]

1. d4 {[%clk 0:02:59]}  Nf6 {[%clk 0:03:00]} 2. c4 {[%clk 0:02:59]}  g6 {[%clk 0:03:00]} 3. Nc3 {[%clk 0:02:59]}  d5 {[%clk 0:03:01]} 4. e3 {[%clk 0:02:58]}  Bg7 {[%clk 0:03:01]} 5. Nf3 {[%clk 0:02:58]}  O-O {[%clk 0:03:02]} 6. Be2 {[%clk 0:02:58]}  c5 {[%clk 0:03:02]} 7. O-O {[%clk 0:02:55]}  cxd4 {[%clk 0:03:02]} 8. Nxd4 {[%clk 0:02:55]}  Nc6 {[%clk 0:03:02]} 9. Nxc6 {[%clk 0:02:55]}  bxc6 {[%clk 0:03:03]} 10. cxd5 {[%clk 0:02:52]}  cxd5 {[%clk 0:03:04]} 11. Bf3 {[%clk 0:02:49]}  Be6 {[%clk 0:02:55]} 12. Qa4 {[%clk 0:02:43]}  Bd7 {[%clk 0:02:41]} 13. Qa3 {[%clk 0:02:41]}  Bc6 {[%clk 0:02:38]} 14. Rd1 {[%clk 0:02:40]}  e6 {[%clk 0:02:30]} 15. Qc5 {[%clk 0:02:24]}  Qb6 {[%clk 0:02:25]} 16. Qxb6 {[%clk 0:02:20]}  axb6 {[%clk 0:02:26]} 17. Bd2 {[%clk 0:02:18]}  Ne4 {[%clk 0:02:12]} 18. Bxe4 {[%clk 0:02:11]}  dxe4 {[%clk 0:02:11]} 19. a3 {[%clk 0:02:08]}  Rfd8 {[%clk 0:02:10]} 20. Rac1 {[%clk 0:02:07]}  Rd6 {[%clk 0:02:04]} 21. Be1 {[%clk 0:02:06]}  Rad8 {[%clk 0:02:03]} 22. Rxd6 {[%clk 0:02:06]}  Rxd6 {[%clk 0:02:04]} 23. Kf1 {[%clk 0:02:03]}  f5 {[%clk 0:01:55]} 24. Ke2 {[%clk 0:01:58]}  Be5 {[%clk 0:01:42]} 25. Rd1 {[%clk 0:01:57]}  Rxd1 {[%clk 0:01:36]} 26. Kxd1 {[%clk 0:01:54]}  Bxh2 {[%clk 0:01:28]} 27. g3 {[%clk 0:01:54]}  h5 {[%clk 0:01:28]} 28. Ke2 {[%clk 0:01:48]}  h4 {[%clk 0:01:12]} 29. Kf1 {[%clk 0:01:31]}  h3 {[%clk 0:01:12]} 30. b4 {[%clk 0:01:27]}  g5 {[%clk 0:01:08]} 31. b5 {[%clk 0:01:24]}  Bd7 {[%clk 0:01:04]} 32. a4 {[%clk 0:01:24]}  Kf7 {[%clk 0:01:02]} 33. Ne2 {[%clk 0:01:21]}  e5 {[%clk 0:00:58]} 34. Nc3 {[%clk 0:01:18]}  Be6 {[%clk 0:00:48]} 35. f4 {[%clk 0:01:09]}  exf4 {[%clk 0:00:41]} 36. exf4 {[%clk 0:01:06]}  gxf4 {[%clk 0:00:37]} 37. gxf4 {[%clk 0:01:04]}  Bxf4 {[%clk 0:00:35]} 38. Bf2 {[%clk 0:01:03]}  Bc7 {[%clk 0:00:29]} 39. Kg1 {[%clk 0:01:01]}  h2+ {[%clk 0:00:23]} 40. Kh1 {[%clk 0:01:01]}  f4 {[%clk 0:00:22]} 41. Nxe4 {[%clk 0:00:57]}  Bd5 {[%clk 0:00:22]} 42. Kxh2 {[%clk 0:00:58]}  Bxe4 {[%clk 0:00:23]} 43. Kh3 {[%clk 0:00:49]}  Ke6 {[%clk 0:00:22]} 44. Kg4 {[%clk 0:00:49]}  Kd5 {[%clk 0:00:23]} 45. a5 {[%clk 0:00:47]}  bxa5 {[%clk 0:00:22]} 46. b6 {[%clk 0:00:48]}  Bb8 {[%clk 0:00:23]} 47. Be1 {[%clk 0:00:46]}  a4 {[%clk 0:00:22]} 48. Bd2 {[%clk 0:00:47]}  Kc6 {[%clk 0:00:20]} 49. Bb4 {[%clk 0:00:34]}  f3 {[%clk 0:00:19]} 50. b7 {[%clk 0:00:26]}  Kxb7 {[%clk 0:00:19]} 51. Bc5 {[%clk 0:00:26]}  Kc6 {[%clk 0:00:18]} 52. Bf2 {[%clk 0:00:26]}  a3 {[%clk 0:00:19]} 0-1


[Site "https://www.chess.com"]